bitfinex/quotes_ETHUSD_20230113
["timestamp","ask_amount","ask_price","bid_price","bid_amount"]
[1673641030265,0.79094818,1421.9,1421.6,24.78194111]
[1673641030481,0.79094818,1421.9,1421.6,28.38827383]
[1673641030690,0.79094818,1421.9,1421.8,1.192]
[1673641031949,0.74094818,1421.9,1421.8,1.192]
[1673641032170,0.74094818,1421.9,1421.8,9.41733]
[1673641032474,0.74094818,1421.9,1421.8,9.48333]
[1673641034274,0.74094818,1421.9,1421.8,16.51666]
[1673641034469,0.74094818,1421.9,1421.8,19.04700221]
[1673641034887,0.74094818,1421.9,1421.8,26.08033221]
[1673641035137,0.74094818,1421.9,1421.8,19.04700221]
[1673641035556,0.74094818,1421.9,1421.8,26.08766709]
[1673641036049,0.74094818,1421.9,1421.8,29.69399981]
[1673641036050,1e-08,1421.9,1421.8,29.69399981]
[1673641036593,0.09972811,1422.0,1421.8,29.69399981]
[1673641036799,0.09972811,1422.0,1421.9,4.15439998]
[1673641037145,0.09972811,1422.0,1421.9,18.22007998]
[1673641037461,0.09972811,1422.0,1421.9,26.51091998]
[1673641037910,0.09972811,1422.0,1421.9,30.1172527]
[1673641038078,0.09972811,1422.0,1421.9,30.1152527]
[1673641038292,0.09972811,1422.0,1421.9,30.1172527]
[1673641038920,7.13206811,1422.0,1421.9,4.22739998]
[1673641039153,0.16572811,1422.0,1421.9,1.192]
[1673641039323,0.09972811,1422.0,1421.9,1.192]
[1673641039534,0.09972811,1422.0,1421.9,22.29052]
[1673641039794,0.09972811,1422.0,1421.9,25.66844171]
[1673641040331,0.04972811,1422.0,1421.9,29.27477443]
[1673641040475,0.04972811,1422.0,1421.9,29.50477443]
[1673641040693,0.04972811,1422.0,1421.9,30.69677443]
[1673641042411,0.04972811,1422.0,1421.9,29.27477443]
[1673641046393,1e-08,1422.0,1421.9,29.27477443]
[1673641046746,1e-08,1422.0,1421.9,30.46677443]
[1673641046904,1e-08,1422.0,1421.9,40.57944682]
[1673641047118,0.15197552,1422.4,1421.9,40.57944682]
[1673641047119,0.24291033,1422.5,1422.1,0.38169617]
[1673641047534,1.57959342,1422.9,1422.4,24.69714272]
[1673641047535,0.062,1422.9,1422.4,24.69714272]
[1673641047647,1.07839256,1423.3,1422.8,18.27732113]
[1673641047860,0.002,1423.3,1423.2,4.79833272]
[1673641048078,1.57959342,1423.6,1423.2,19.56098599]
[1673641048286,0.04916853,1423.7,1423.3,3.60633272]
[1673641048502,0.04916853,1423.7,1423.2,1.73783327]
[1673641048800,8.53e-06,1423.7,1423.2,1.186]
[1673641049059,2.37799451,1424.0,1423.3,3.60633272]
[1673641049217,2.566,1424.1,1423.4,7.79833272]
[1673641049427,11.66671798,1424.2,1423.5,3.60633272]
[1673641049693,1.57959342,1424.1,1423.6,3.60633272]
[1673641049846,5.99678026,1424.2,1423.7,0.23]
[1673641049847,2.5,1424.0,1423.7,0.23]
[1673641050056,2.76459342,1423.9,1423.5,0.066]
[1673641050263,4.94371798,1424.0,1423.4,0.066]
[1673641050531,4.94371798,1424.0,1423.2,0.066]
[1673641050532,0.4943718,1423.9,1423.2,0.066]
[1673641050717,0.4943718,1423.9,1423.1,1.19]
[1673641050718,1.192,1423.7,1423.1,1.19]
[1673641050905,1.184,1423.8,1423.0,0.066]
[1673641051115,1.184,1423.8,1422.8,4.54098841]
[1673641051116,1.182,1423.5,1422.8,1.70498841]
[1673641051325,1.181,1423.6,1422.8,0.36698841]
[1673641051326,1.185,1423.3,1422.8,0.36698841]
[1673641051541,1.719,1423.4,1422.8,0.36698841]
[1673641051878,1.188,1423.1,1422.8,0.36698841]
[1673641052090,1.188,1423.1,1423.0,0.04919337]
[1673641052280,1.192,1423.1,1423.0,0.04919337]
[1673641052928,4.258,1423.3,1423.0,0.04919337]
[1673641053161,3.0,1423.2,1423.0,0.04919337]
[1673641053486,0.066,1423.3,1423.0,0.04919337]
[1673641053783,3.0,1423.3,1422.6,4.058]
[1673641054001,0.066,1423.4,1422.8,1.192]
[1673641054161,3.066,1423.6,1422.9,3.60633272]
[1673641054379,0.527,1423.4,1423.0,3.60633272]
[1673641054580,3.5269,1423.5,1423.1,4.79133272]
[1673641055002,1.192,1423.4,1423.0,0.066]
[1673641055242,0.1192,1423.3,1422.7,2.784]
[1673641055578,0.1192,1423.3,1422.6,2.866]
[1673641055579,1.192,1423.2,1422.6,2.866]
[1673641055732,1.192,1423.2,1422.5,1.258]
[1673641055944,0.5271,1423.1,1422.3,13.1117]
[1673641056196,2.18301,1423.1,1422.4,2.49817]
[1673641056387,2.18301,1423.1,1422.4,1.187]
[1673641056388,5.18301,1423.1,1422.4,1.187]
[1673641056600,5.24901,1423.1,1422.4,1.187]
[1673641057163,4.06501,1423.1,1422.5,1.192]
[1673641057364,0.99901,1423.1,1422.5,1.192]
[1673641057538,1.181,1422.9,1422.3,4.156]
[1673641057750,1.181,1422.9,1422.4,3.60633272]
[1673641057982,1.7082,1422.9,1422.4,3.60633272]
[1673641058839,1.7082,1422.9,1422.3,0.066]
[1673641058840,1.192,1422.8,1422.3,0.066]
[1673641059026,1.192,1422.8,1422.3,3.60633272]
[1673641059238,0.6464,1422.7,1422.3,3.60633272]
[1673641059471,1.8274,1422.7,1422.2,0.066]
[1673641059682,4.8274,1422.7,1422.2,3.60633272]
[1673641059834,4.8274,1422.7,1422.1,5.80269617]
[1673641060044,4.8274,1422.7,1422.1,5.44449298]
[1673641060045,1.67074,1422.6,1422.1,5.44449298]
[1673641060334,1.67074,1422.6,1422.1,0.44769617]
[1673641060335,1.192,1422.4,1422.1,0.44769617]
[1673641060731,3.5273,1422.5,1422.1,0.38169617]
[1673641060732,0.5274,1422.3,1422.1,0.38169617]
[1673641060890,0.5273,1422.4,1422.1,0.38169617]
[1673641061102,0.5273,1422.4,1422.2,7.03135]
[1673641061416,0.5273,1422.4,1422.2,0.066]
[1673641061633,0.5272,1422.7,1422.2,0.30291569]
[1673641061974,0.5272,1422.7,1422.4,7.03001]
[1673641062148,0.5272,1422.8,1422.4,7.09601]
[1673641062361,0.5272,1422.8,1422.4,15.31038]
[1673641062569,1.258,1423.2,1422.6,1.192]
[1673641062803,1.192,1423.2,1422.6,1.192]
[1673641063018,1.192,1423.2,1422.5,1.597038]
[1673641063019,1.192,1423.0,1422.4,2.81]
[1673641063224,1.184,1422.9,1422.3,12.34081]
[1673641063435,0.5272,1422.9,1422.5,2.5]
[1673641063685,0.066,1423.2,1422.7,7.02888]
[1673641063841,10.0076,1423.5,1422.8,3.60633272]
[1673641064040,10.0076,1423.5,1423.0,7.02735]
[1673641064041,4.86433272,1423.5,1423.0,7.02735]
[1673641064251,0.527,1423.4,1423.0,0.066]
[1673641064463,1.05953327,1423.4,1422.9,7.09368]
[1673641064774,1.05953327,1423.4,1422.9,0.066]
[1673641065034,1.192,1423.3,1422.8,3.67233272]
[1673641065355,1.192,1423.3,1422.7,0.066]
[1673641065356,1.192,1423.2,1422.7,0.066]
[1673641065548,1.8382,1423.2,1422.6,8.52829]
[1673641065722,1.182,1423.1,1422.6,0.316]
[1673641065933,1.182,1423.1,1422.6,0.25]
[1673641066639,1.192,1423.0,1422.5,0.066]
[1673641066777,1.192,1422.9,1422.5,3.60633272]
[1673641067986,1.192,1422.9,1422.4,0.066]
[1673641068145,3.7122,1422.8,1422.3,7.03063]
[1673641068352,3.7122,1422.8,1422.3,7.09663]
[1673641068353,3.0,1422.7,1422.3,7.09663]
[1673641068593,4.192,1422.7,1422.3,0.066]
[1673641068808,1.192,1422.7,1422.2,14.40106953]
[1673641068994,1.192,1422.7,1422.2,14.46706953]
[1673641068995,4.80094,1422.7,1422.2,14.46706953]
[1673641069209,4.80094,1422.7,1422.2,0.11017991]
[1673641069462,4.80094,1422.7,1422.2,7.07544991]
[1673641069774,1.7193,1422.6,1422.2,7.14149991]
[1673641069977,4.7193,1422.6,1422.2,7.14149991]
[1673641070138,11.7487,1422.6,1422.2,0.11017991]
[1673641070347,0.47193,1422.5,1422.2,0.04417991]
[1673641070557,4.7853,1422.6,1422.2,0.04417991]
[1673641070815,4.7193,1422.6,1422.2,0.04417991]
[1673641071240,1.185,1422.4,1422.2,0.04417991]
[1673641071409,3.2995,1422.3,1422.2,0.04417991]
[1673641071620,8.85776,1422.3,1422.2,0.04417991]
[1673641071875,8.92376,1422.3,1422.2,0.04417991]
[1673641072242,4.8929,1422.3,1422.2,0.04417991]
[1673641072490,4.8269,1422.3,1422.2,0.04417991]
[1673641073340,22.49495272,1422.3,1422.2,0.04417991]
[1673641073556,22.56095272,1422.3,1422.2,0.04417991]
[1673641073765,4.8929,1422.3,1422.2,0.04417991]
[1673641073916,3.6459,1422.3,1422.2,0.04417991]
[1673641074130,3.5274,1422.3,1422.2,0.04417991]
[1673641074770,0.5274,1422.3,1422.2,0.04417991]
[1673641075130,7.55826,1422.3,1422.2,0.04417991]
[1673641075318,10.62426,1422.3,1422.2,0.04417991]
[1673641075579,22.45345272,1422.3,1422.2,0.04417991]
[1673641075892,8.39173272,1422.3,1422.2,0.04417991]
[1673641076122,7.34507496,1422.3,1422.2,0.04417991]
[1673641076270,14.90333496,1422.3,1422.2,0.04417991]
[1673641076949,21.93419496,1422.3,1422.2,0.04417991]
[1673641077169,22.16419496,1422.3,1422.2,0.04417991]
[1673641077324,22.16419496,1422.3,1421.6,2.61017991]
[1673641077325,2.0,1422.2,1421.6,2.61017991]
[1673641077531,3.83633272,1422.1,1421.6,0.04417991]
[1673641077899,3.83633272,1422.1,1421.6,14.11260991]
[1673641077900,3.0,1422.0,1421.6,14.11260991]
[1673641078213,3.5275,1422.0,1421.6,7.14428991]
[1673641078364,3.5275,1422.0,1421.6,11.0621579]
[1673641078581,3.0,1422.0,1421.7,2.5]
[1673641078892,3.0,1422.0,1421.7,16.56744]
[1673641079102,0.002,1422.0,1421.7,16.63144]
[1673641079364,0.5275,1422.0,1421.7,2.566]
[1673641079574,15.78483,1422.0,1421.6,1.5280479]
[1673641079900,1.7855,1422.0,1421.6,0.04417991]
[1673641080050,1.7195,1422.0,1421.6,7.07847991]
[1673641080256,1.7195,1422.0,1421.6,8.5557629]
[1673641080938,19.39060272,1422.0,1421.6,1.5214629]
[1673641081130,19.45660272,1422.0,1421.6,1.4554629]
[1673641081738,19.45660272,1422.0,1421.6,0.04417991]
[1673641082178,1.192,1421.7,1421.6,0.04417991]
[1673641082408,8.22583,1421.7,1421.6,0.04417991]
[1673641082618,22.35949,1421.7,1421.6,0.04417991]
[1673641082776,15.32566,1421.7,1421.6,0.04417991]
[1673641083248,22.35949,1421.7,1421.6,0.04417991]
[1673641083466,22.88709,1421.7,1421.6,0.04417991]
[1673641083676,11.81943,1421.7,1421.6,0.04417991]
[1673641083830,15.65576272,1421.7,1421.6,0.04417991]
[1673641084039,4.7856,1421.7,1421.6,0.04417991]
[1673641084359,8.32593272,1421.7,1421.6,0.04417991]
[1673641084585,23.87059272,1421.7,1421.6,0.04417991]
[1673641085040,23.87059272,1421.7,1421.4,0.04655744]
[1673641085041,2.5,1421.6,1421.4,0.04655744]
[1673641085226,33.89161272,1421.5,1421.4,0.04655744]
[1673641085422,33.95761272,1421.5,1421.4,0.04655744]
[1673641085654,37.48531272,1421.5,1421.4,0.04655744]
[1673641086245,37.48531272,1421.5,1421.1,0.05341402]
[1673641086504,15.2646,1421.2,1421.1,0.05341402]
[1673641086671,6.68259321,1421.2,1421.1,0.05341402]
[1673641087507,1.247,1421.2,1421.1,0.05341402]
[1673641087716,22.2899,1421.2,1421.1,0.05341402]
[1673641087986,25.96223272,1421.2,1421.1,0.05341402]
[1673641088297,0.066,1421.2,1421.1,8.78652019]
[1673641088469,3.5277,1421.4,1421.1,1.81572019]
[1673641088682,3.5277,1421.4,1421.1,0.05341402]
[1673641088878,18.79036,1421.4,1421.1,0.05341402]
[1673641089095,25.89169,1421.4,1421.1,0.05341402]
[1673641089436,29.49802272,1421.4,1421.1,0.05341402]
[1673641089626,4.79833272,1421.3,1421.1,0.05341402]
[1673641089835,3.60633272,1421.2,1421.1,0.05341402]
[1673641090191,0.066,1421.3,1421.1,7.09021402]
[1673641090397,1.7197,1421.4,1421.1,7.15621402]
[1673641090612,9.95887638,1421.5,1421.1,7.15621402]
[1673641090790,1.73197638,1421.5,1421.1,25.28720319]
[1673641090983,20.58770311,1421.7,1421.2,3.60633272]
[1673641091220,0.066,1421.7,1421.4,1.184]
[1673641091443,0.5275,1421.9,1421.3,9.60156]
[1673641091604,1.184,1421.8,1421.4,0.960156]
[1673641091818,1.184,1421.8,1421.3,2.5]
[1673641092071,8.21754,1421.8,1421.3,2.5]
[1673641092263,4.85633272,1421.8,1421.3,9.53569]
[1673641092595,11.82370272,1421.8,1421.3,9.60169]
[1673641092769,18.92307272,1421.8,1421.3,2.566]
[1673641092976,18.92307272,1421.8,1421.4,0.2566]
[1673641093235,11.88970272,1421.8,1421.4,0.2566]
[1673641093387,1.25,1421.8,1421.4,7.29179]
[1673641093602,4.7095,1421.9,1421.4,14.3931]
[1673641093937,7.78833272,1421.9,1421.6,7.03422]
[1673641094134,0.066,1421.9,1421.7,2.5]
[1673641094343,9.5783,1422.2,1421.7,3.685]
[1673641094666,3.67233272,1422.2,1421.7,12.619614]
[1673641094879,0.5934,1422.3,1421.7,19.719444]
[1673641095135,0.5274,1422.3,1421.8,1.188]
[1673641095452,0.5274,1422.3,1421.9,14.06543]
[1673641095661,0.5274,1422.3,1421.9,14.13143]
[1673641096186,0.5274,1422.3,1421.9,0.066]
[1673641096187,3.60633272,1422.2,1421.9,0.066]
[1673641096375,3.60633272,1422.2,1421.7,6.342]
[1673641096565,3.60633272,1422.2,1421.7,13.37553]
[1673641096778,3.55633272,1422.2,1421.7,20.40936]
[1673641097149,3.60633272,1422.1,1421.7,18.441194]
[1673641097365,3.60633272,1422.1,1421.7,0.066]
[1673641097366,4.79833272,1422.1,1421.7,0.066]
[1673641097504,4.79833272,1422.1,1421.5,16.76622]
[1673641097714,19.38990272,1422.1,1421.5,9.73173]
[1673641098057,19.45590272,1422.1,1421.5,16.76655]
[1673641098246,1.192,1421.9,1421.5,0.066]
[1673641098506,3.83633272,1421.8,1421.5,7.0348]
[1673641098670,1.192,1421.9,1421.5,14.13562]
[1673641098671,1.258,1421.9,1421.5,14.13562]
[1673641098875,0.5275,1421.9,1421.5,7.1008]
[1673641099347,0.5275,1421.9,1421.5,16.857697]
[1673641099657,0.066,1422.1,1421.7,1.192]
[1673641099841,0.066,1422.3,1421.8,21.09969]
[1673641100177,8.28863,1422.4,1421.8,21.16569]
[1673641100333,0.5274,1422.3,1421.8,21.16569]
[1673641100547,0.4774,1422.3,1421.8,21.16569]
[1673641101391,12.42226272,1422.4,1421.8,21.16569]
[1673641101608,3.23,1422.3,1421.8,21.16569]
[1673641102724,3.60633272,1422.2,1421.8,0.066]
[1673641102858,0.23,1422.1,1421.7,7.03366]
[1673641103070,0.23,1422.1,1421.7,7.09958]
[1673641103313,7.2619,1422.1,1421.7,0.066]
[1673641103523,14.3598,1422.1,1421.6,14.13395]
[1673641103854,4.79833272,1422.0,1421.6,0.066]
[1673641104066,7.26294,1421.9,1421.5,0.066]
[1673641104283,7.26294,1421.9,1421.4,23.74084]
[1673641104284,7.32894,1421.9,1421.4,23.74084]
[1673641104442,7.32894,1421.9,1421.5,9.53467]
[1673641104799,0.296,1421.9,1421.5,16.63549]
[1673641104964,0.23,1421.9,1421.6,2.5]
[1673641105176,0.23,1421.9,1421.7,7.03383]
[1673641105378,0.23,1421.9,1421.7,0.066]
[1673641105593,0.23,1421.9,1421.6,7.03427]
[1673641105800,0.23,1421.9,1421.6,9.2800509]
[1673641106698,3.83633272,1421.9,1421.6,0.066]
[1673641107006,3.60633272,1421.8,1421.4,0.066]
[1673641107198,3.60633272,1421.8,1421.3,2.5]
[1673641107199,0.23,1421.7,1421.3,2.5]
[1673641107378,14.29766,1421.7,1421.3,2.5]
[1673641107586,14.36366,1421.7,1421.3,2.5]
[1673641108007,0.296,1421.7,1421.3,2.5]
[1673641108240,0.296,1421.7,1421.4,7.28519]
[1673641108241,0.23,1421.7,1421.4,7.28519]
[1673641108434,0.23,1421.7,1421.4,7.35119]
[1673641109267,7.2639,1421.7,1421.4,0.066]
[1673641109502,7.3299,1421.7,1421.3,26.29024258]
[1673641109712,7.3299,1421.7,1421.3,19.25465258]
[1673641109938,7.3299,1421.7,1421.3,12.21911258]
[1673641110152,0.296,1421.7,1421.3,26.29073258]
[1673641110389,17.67349272,1421.8,1421.3,26.29073258]
[1673641110390,0.066,1421.8,1421.5,21.10446]
[1673641110585,3.0,1421.9,1421.8,0.002]
[1673641110777,6.83633272,1421.9,1421.8,0.002]
[1673641110993,6.90233272,1421.9,1421.8,0.002]
[1673641111429,3.296,1421.9,1421.8,0.002]
[1673641111605,3.23,1421.9,1421.8,0.002]
[1673641112451,3.18,1421.9,1421.8,0.002]
[1673641114547,0.23,1421.9,1421.8,1.919]
[1673641114754,0.066,1422.0,1421.8,23.01899]
[1673641115021,3.5274,1422.1,1421.8,16.05166]
[1673641115171,3.5274,1422.1,1421.8,18.360169]
[1673641115868,3.5274,1422.1,1421.8,25.393499]
[1673641116016,3.5274,1422.1,1421.8,18.360169]
[1673641116223,3.4774,1422.1,1421.8,16.05166]
[1673641116471,3.4774,1422.1,1421.8,0.068]
[1673641116683,17.54151,1422.1,1421.8,0.002]
[1673641116890,17.60751,1422.1,1421.8,0.002]
[1673641117700,28.24604272,1422.1,1421.8,0.002]
[1673641117912,0.23,1422.0,1421.8,0.002]
[1673641118168,7.03284,1421.9,1421.8,0.002]
[1673641118346,7.09884,1421.9,1421.8,0.002]
[1673641118751,24.77085272,1421.9,1421.8,0.002]
[1673641118980,26.19285272,1421.9,1421.8,0.002]
[1673641119237,29.19285272,1421.9,1421.8,0.002]
[1673641119609,29.72035272,1421.9,1421.8,0.002]
[1673641120437,33.53171252,1421.9,1421.8,0.002]
[1673641121076,37.76371252,1421.9,1421.8,0.002]
[1673641121484,36.72394614,1421.9,1421.8,0.002]
[1673641123084,44.14594614,1421.9,1421.8,0.002]
[1673641123313,52.12940408,1421.9,1421.1,3.78658876]
[1673641123525,1.192,1421.5,1421.1,0.05341402]
[1673641123688,7.03581,1421.3,1421.1,2.84847733]
[1673641123906,0.066,1421.3,1421.1,1.10301722]
[1673641124140,7.17059,1421.4,1421.1,1.10301722]
[1673641124359,0.23,1421.3,1421.1,1.10301722]
[1673641124572,0.23,1421.3,1421.1,0.05341402]
[1673641124751,7.26586,1421.3,1421.1,0.05341402]
[1673641124957,14.36772,1421.3,1421.1,0.05341402]
[1673641125428,25.00991272,1421.3,1421.1,0.05341402]
[1673641125601,3.60633272,1421.2,1421.1,0.05341402]
[1673641125822,3.83633272,1421.2,1421.1,0.05341402]
[1673641126036,3.83633272,1421.2,1421.1,1.79894429]
[1673641126037,0.23,1421.2,1421.1,1.79894429]
[1673641126366,7.2663,1421.2,1421.1,0.05341402]
[1673641126578,7.3323,1421.2,1421.1,0.05341402]
[1673641127232,0.296,1421.2,1421.1,0.05341402]
[1673641127392,16.2186,1421.2,1421.1,0.05341402]
[1673641127594,23.3209,1421.2,1421.1,0.05341402]
[1673641128276,23.3209,1421.2,1421.1,0.04741402]
[1673641128592,26.92723272,1421.2,1421.1,0.04741402]
[1673641129744,29.92723272,1421.2,1421.1,0.04741402]
[1673641129914,8.81833272,1421.2,1421.1,0.04741402]
[1673641130126,5.212,1421.2,1421.1,0.04741402]
[1673641130342,3.296,1421.2,1421.1,0.04741402]
[1673641130694,4.56506373,1421.3,1421.1,0.04741402]
[1673641130906,8.10539645,1421.3,1421.1,0.04741402]
[1673641131216,3.60633272,1421.2,1421.1,0.04741402]
[1673641132119,13.64263272,1421.2,1421.1,0.04741402]
[1673641132388,20.74493272,1421.2,1421.1,0.04741402]
[1673641132555,13.70863272,1421.2,1421.1,0.04741402]
[1673641132913,3.066,1421.2,1421.1,1.78741402]
[1673641133067,0.066,1421.3,1421.1,15.86101402]
[1673641133276,21.03473,1421.6,1421.1,22.96381402]
[1673641133277,3.066,1421.5,1421.1,22.96381402]
[1673641133537,3.066,1421.5,1421.1,24.54481402]
[1673641133538,3.60633272,1421.4,1421.1,24.54481402]
[1673641133755,3.60633272,1421.4,1421.1,29.49230151]
[1673641133912,10.62854,1421.5,1421.1,29.49230151]
[1673641134255,7.20003272,1421.5,1421.1,29.49230151]
[1673641134587,14.23501272,1421.5,1421.1,8.38190151]
[1673641134784,28.30481272,1421.5,1421.1,0.11341402]
[1673641134961,28.30481272,1421.5,1421.1,0.04741402]
[1673641135324,3.60633272,1421.4,1421.1,0.04741402]
[1673641135485,14.07162,1421.3,1421.1,0.04741402]
[1673641135701,30.37,1421.7,1421.1,27.28798471]
[1673641135906,30.37,1421.7,1421.2,1.581]
[1673641135907,3.60633272,1421.6,1421.2,1.581]
[1673641136147,3.60633272,1421.6,1421.3,14.07152]
[1673641136381,3.60633272,1421.6,1421.3,7.10171]
[1673641136532,17.67506272,1421.6,1421.3,0.066]
[1673641136745,17.74106272,1421.6,1421.2,15.71886]
[1673641137019,17.74106272,1421.6,1421.2,18.81334579]
[1673641137221,21.16914,1421.6,1421.2,11.77734579]
[1673641137436,14.13473,1421.6,1421.2,4.74148579]
[1673641137591,14.13473,1421.6,1421.2,4.67548579]
[1673641137804,14.13473,1421.6,1421.2,14.21175579]
[1673641138013,14.13473,1421.6,1421.3,1.42117558]
[1673641138380,0.066,1421.6,1421.3,24.10949558]
[1673641138697,3.0,1421.7,1421.3,24.17549558]
[1673641138865,13.64033272,1421.7,1421.3,24.17549558]
[1673641139076,20.74033272,1421.7,1421.4,2.41754956]
[1673641139280,27.77433272,1421.7,1421.3,0.066]
[1673641139543,27.77433272,1421.7,1421.2,1.647]
[1673641139850,27.77433272,1421.7,1421.2,1.581]
[1673641140003,3.60633272,1421.6,1421.2,1.581]
[1673641140217,21.10476,1421.5,1421.2,1.581]
[1673641140418,21.17076,1421.5,1421.2,3.48733953]
[1673641140633,21.12076,1421.5,1421.2,3.48733953]
[1673641143156,21.12076,1421.5,1421.2,1.581]
[1673641143623,3.60633272,1421.4,1421.1,4.29934784]
[1673641143956,14.07162,1421.3,1421.1,1.61541402]
[1673641144097,14.13762,1421.3,1421.1,1.61541402]
[1673641144750,7.10181,1421.3,1421.1,1.61541402]
[1673641145522,14.13762,1421.3,1421.1,1.61541402]
[1673641145675,7.10181,1421.3,1421.1,1.61541402]
[1673641145885,0.066,1421.3,1421.1,1.61541402]
[1673641146095,24.77914272,1421.4,1421.1,1.61541402]
[1673641146354,21.70051,1421.4,1421.1,1.61541402]
[1673641147153,21.17281,1421.4,1421.1,1.61541402]
[1673641147366,21.17281,1421.4,1421.1,1.51541402]
[1673641148209,24.77914272,1421.4,1421.0,16.90964772]
[1673641148420,3.60633272,1421.3,1421.0,16.90964772]
[1673641148629,14.0726,1421.2,1421.0,16.90964772]
[1673641148894,14.1386,1421.2,1421.0,16.90964772]
[1673641149936,21.1749,1421.2,1421.0,16.90964772]
[1673641150153,3.60633272,1421.1,1421.0,16.90964772]
[1673641150308,17.90993272,1421.1,1421.0,16.90964772]
[1673641150516,16.11369214,1421.1,1421.0,16.90964772]
[1673641150776,23.15049214,1421.1,1421.0,16.90964772]
[1673641151515,23.15049214,1421.1,1421.0,16.85964772]
[1673641151830,0.066,1421.1,1421.0,32.51522772]
[1673641152050,3.0,1421.4,1421.0,20.11582624]
[1673641152351,0.23,1421.3,1421.0,16.85964772]
[1673641152516,0.7577,1421.3,1421.0,16.85964772]
[1673641152971,7.79351,1421.3,1421.0,16.85964772]
[1673641153198,7.85951,1421.3,1421.0,16.85964772]
[1673641153369,3.0,1421.2,1421.0,16.85964772]
[1673641153584,2.446,1421.1,1421.0,16.85964772]
[1673641154559,23.5564,1421.1,1421.0,16.85964772]
[1673641154877,27.22873272,1421.1,1421.0,16.85964772]
[1673641156137,30.75653272,1421.1,1421.0,16.85964772]
[1673641156293,34.98853272,1421.1,1421.0,16.85964772]
[1673641156710,23.71973272,1421.1,1421.0,16.85964772]
[1673641156963,9.64613272,1421.1,1421.0,16.85964772]
[1673641158136,5.212,1421.1,1421.0,16.85764772]
[1673641158490,0.066,1421.1,1421.0,16.85764772]
[1673641158622,22.08662746,1421.4,1421.0,16.85764772]
[1673641158623,3.5277,1421.3,1421.0,16.85764772]
[1673641158816,3.60633272,1421.2,1421.0,16.85764772]
[1673641159027,3.5937,1421.3,1421.0,16.85764772]
[1673641159296,27.20397873,1421.3,1421.0,20.99090824]
[1673641159461,26.74227873,1421.3,1421.0,28.02812824]
[1673641160605,26.74227873,1421.3,1421.0,20.99090824]
[1673641160816,26.74227873,1421.3,1421.0,28.02813824]
[1673641160817,14.57292571,1421.2,1421.0,28.02813824]
[1673641161160,14.63892571,1421.2,1421.0,20.99090824]
[1673641161380,14.63892571,1421.2,1421.0,16.85764772]
[1673641161381,18.24525843,1421.2,1421.0,16.85764772]
[1673641161611,21.1104,1421.1,1421.0,16.85764772]
[1673641161924,25.01273272,1421.1,1421.0,16.85764772]
[1673641164228,0.066,1421.1,1421.0,16.85764772]
[1673641164397,21.67550571,1421.2,1421.0,16.85764772]
[1673641164755,28.71208571,1421.2,1421.0,16.85764772]
[1673641165498,3.60633272,1421.1,1421.0,16.85764772]
[1673641165704,17.90993272,1421.1,1421.0,16.85764772]
[1673641165875,25.01273272,1421.1,1421.0,16.85764772]
[1673641168234,32.24473272,1421.1,1421.0,16.85764772]
[1673641168446,33.82573272,1421.1,1421.0,16.85764772]
[1673641169386,41.24773272,1421.1,1421.0,16.85764772]
[1673641169558,42.82678018,1421.1,1421.0,16.85764772]
[1673641169823,49.55410053,1421.1,1421.0,16.85764772]
[1673641172013,59.87974051,1421.1,1420.9,0.04655744]
[1673641172187,29.67723272,1421.0,1420.9,0.04655744]
[1673641172396,57.31379127,1421.0,1420.9,7.44e-06]
[1673641172591,57.18281234,1421.0,1420.9,7.44e-06]
[1673641172808,52.29106018,1421.0,1420.9,7.44e-06]
[1673641173013,48.73981272,1421.0,1420.9,7.44e-06]
[1673641173272,48.73981272,1421.0,1420.8,0.05156376]
[1673641173437,7.83833272,1420.9,1420.8,0.05156376]
[1673641173649,25.20991272,1420.9,1420.8,0.05156376]
[1673641174525,20.97791272,1420.9,1420.8,0.05156376]
[1673641174759,6.67233272,1420.9,1420.8,1.79156376]
[1673641175061,0.066,1420.9,1420.8,1.79156376]
[1673641175217,3.0,1421.0,1420.8,1.79156376]
[1673641175430,6.60633272,1421.0,1420.8,8.82984376]
[1673641175691,6.67233272,1421.0,1420.8,8.89584376]
[1673641175897,6.67233272,1421.0,1420.8,1.85756376]
[1673641176073,6.67233272,1421.0,1420.8,8.82979376]
[1673641176286,6.67233272,1421.0,1420.8,8.89579376]
[1673641176615,6.67233272,1421.0,1420.8,1.85756376]
[1673641176825,6.67233272,1421.0,1420.8,1.79156376]
[1673641177255,0.066,1421.0,1420.8,8.68857177]
[1673641177587,6.79332035,1421.1,1420.8,15.79285177]
[1673641178197,6.79332035,1421.1,1420.8,8.75457177]
[1673641178414,0.066,1421.1,1420.8,1.71639177]
[1673641178743,7.03633,1421.2,1420.8,1.65039177]
[1673641178744,7.10233,1421.2,1420.8,1.65039177]
[1673641178932,10.70866272,1421.2,1420.8,4.15039177]
[1673641179105,10.70866272,1421.2,1420.9,0.41503918]
[1673641180118,17.74519272,1421.2,1420.9,0.41503918]
[1673641180416,3.67233272,1421.2,1420.9,0.41503918]
[1673641180643,3.066,1421.3,1420.9,14.49061918]
[1673641180942,3.0,1421.3,1421.1,21.1104]
[1673641181168,0.5937,1421.4,1421.1,22.7574]
[1673641181377,3.60633272,1421.4,1421.1,22.7574]
[1673641182060,3.60633272,1421.4,1421.1,15.7206]
[1673641183215,3.60633272,1421.4,1421.1,8.6838]
[1673641184050,3.55633272,1421.4,1421.1,8.6838]
[1673641185266,10.59167272,1421.4,1421.1,8.6838]
[1673641185432,3.62233272,1421.4,1421.1,15.7206]
[1673641185631,3.55633272,1421.4,1421.1,8.6838]
[1673641185845,10.59177272,1421.4,1421.1,8.6838]
[1673641186053,10.65777272,1421.4,1421.1,8.6838]
[1673641186785,3.62233272,1421.4,1421.1,8.6838]
[1673641186991,3.55633272,1421.4,1421.1,15.7206]
[1673641187258,10.59170272,1421.4,1421.1,8.6838]
[1673641187575,3.62233272,1421.4,1421.1,15.7206]
[1673641187746,15.31813726,1421.5,1421.1,8.6838]